[Event "Titled Tuesday Blitz May 30 Late 2023"]
[White "Gutkin, Ilya"]
[Black "Gubajdullin, Alexei"]
[WhiteFideId "16203470"]
[BlackFideId "4141202"]
[WhiteElo "2265"]
[BlackElo "2279"]
[Result "0-1"]
[Round "05"]
[TimeControl "180+2"]
[Date "2023.05.31"]
[WhiteClock "0:01:41"]
[BlackClock "0:00:58"]

1. Nf3 {[%clk 0:02:58]}  Nf6 {[%clk 0:02:59]} 2. g3 {[%clk 0:02:57]}  g6 {[%clk 0:02:58]} 3. b3 {[%clk 0:02:56]}  Bg7 {[%clk 0:02:58]} 4. Bb2 {[%clk 0:02:56]}  O-O {[%clk 0:02:58]} 5. Bg2 {[%clk 0:02:56]}  d6 {[%clk 0:02:57]} 6. d4 {[%clk 0:02:56]}  e5 {[%clk 0:02:54]} 7. dxe5 {[%clk 0:02:56]}  Ng4 {[%clk 0:02:54]} 8. c4 {[%clk 0:02:55]}  Nc6 {[%clk 0:02:53]} 9. O-O {[%clk 0:02:54]}  Ngxe5 {[%clk 0:02:51]} 10. Nc3 {[%clk 0:02:54]}  Nxf3+ {[%clk 0:02:49]} 11. exf3 {[%clk 0:02:55]}  Re8 {[%clk 0:02:47]} 12. Qd2 {[%clk 0:02:53]}  Be6 {[%clk 0:02:43]} 13. f4 {[%clk 0:02:52]}  Qf6 {[%clk 0:02:16]} 14. Rfe1 {[%clk 0:02:50]}  Qd4 {[%clk 0:02:15]} 15. Qxd4 {[%clk 0:02:47]}  Bxd4 {[%clk 0:02:12]} 16. Rad1 {[%clk 0:02:46]}  Bg7 {[%clk 0:02:06]} 17. Ba1 {[%clk 0:02:28]}  a6 {[%clk 0:01:51]} 18. Rc1 {[%clk 0:02:24]}  Kf8 {[%clk 0:01:49]} 19. Kf1 {[%clk 0:02:07]}  f5 {[%clk 0:01:45]} 20. Nd5 {[%clk 0:02:05]}  Rac8 {[%clk 0:01:21]} 21. Bxg7+ {[%clk 0:01:57]}  Kxg7 {[%clk 0:01:21]} 22. Re3 {[%clk 0:01:53]}  Bxd5 {[%clk 0:01:08]} 23. Rxe8 {[%clk 0:01:52]}  Bxg2+ {[%clk 0:01:00]} 24. Kxg2 {[%clk 0:01:42]}  Rxe8 {[%clk 0:00:59]} 25. c5 {[%clk 0:01:41]}  d5 {[%clk 0:00:58]} 0-1


[Site "https://www.chess.com"]

[Event "Titled Tuesday Blitz May 30 Late 2023"]
[White "Souza, Adwilhans Luciano"]
[Black "Eugene, Floryan"]
[WhiteFideId "2101793"]
[BlackFideId "20694784"]
[WhiteElo "2288"]
[BlackElo "2369"]
[Result "0-1"]
[Round "05"]
[TimeControl "180+2"]
[Date "2023.05.31"]
[WhiteClock "0:00:19"]
[BlackClock "0:01:06"]

1. e4 {[%clk 0:02:59]}  c5 {[%clk 0:03:00]} 2. Nf3 {[%clk 0:02:59]}  Nc6 {[%clk 0:03:01]} 3. d4 {[%clk 0:02:59]}  cxd4 {[%clk 0:03:02]} 4. Nxd4 {[%clk 0:02:58]}  e5 {[%clk 0:03:01]} 5. Nb5 {[%clk 0:02:58]}  Nf6 {[%clk 0:02:58]} 6. N1c3 {[%clk 0:02:57]}  h6 {[%clk 0:02:57]} 7. Nd5 {[%clk 0:02:44]}  Nxd5 {[%clk 0:02:53]} 8. exd5 {[%clk 0:02:42]}  a6 {[%clk 0:02:52]} 9. dxc6 {[%clk 0:02:25]}  axb5 {[%clk 0:02:52]} 10. cxd7+ {[%clk 0:02:25]}  Bxd7 {[%clk 0:02:52]} 11. Be2 {[%clk 0:02:22]}  Be7 {[%clk 0:02:48]} 12. O-O {[%clk 0:02:21]}  Bc6 {[%clk 0:02:43]} 13. Be3 {[%clk 0:02:17]}  O-O {[%clk 0:02:42]} 14. a3 {[%clk 0:02:14]}  Qc7 {[%clk 0:02:39]} 15. Qe1 {[%clk 0:02:09]}  f5 {[%clk 0:02:35]} 16. f3 {[%clk 0:02:06]}  Bd6 {[%clk 0:02:23]} 17. Qc3 {[%clk 0:02:02]}  e4 {[%clk 0:02:00]} 18. f4 {[%clk 0:01:59]}  b4 {[%clk 0:02:00]} 19. Qb3+ {[%clk 0:00:52]}  Kh7 {[%clk 0:01:56]} 20. a4 {[%clk 0:00:53]}  Ra5 {[%clk 0:01:45]} 21. g3 {[%clk 0:00:52]}  Bd5 {[%clk 0:01:36]} 22. c4 {[%clk 0:00:47]}  bxc3 {[%clk 0:01:35]} 23. Qxc3 {[%clk 0:00:47]}  Qxc3 {[%clk 0:01:35]} 24. bxc3 {[%clk 0:00:48]}  Rc8 {[%clk 0:01:29]} 25. Bd4 {[%clk 0:00:47]}  Bc5 {[%clk 0:01:28]} 26. Rfb1 {[%clk 0:00:45]}  Bxd4+ {[%clk 0:01:26]} 27. cxd4 {[%clk 0:00:46]}  Rc2 {[%clk 0:01:25]} 28. Bb5 {[%clk 0:00:45]}  e3 {[%clk 0:01:25]} 29. Bd3 {[%clk 0:00:33]}  Rg2+ {[%clk 0:01:23]} 30. Kf1 {[%clk 0:00:34]}  Rxh2 {[%clk 0:01:14]} 31. Bxf5+ {[%clk 0:00:33]}  g6 {[%clk 0:01:14]} 32. Bd3 {[%clk 0:00:32]}  Bf3 {[%clk 0:01:12]} 33. Ke1 {[%clk 0:00:27]}  Rh1+ {[%clk 0:01:10]} 34. Bf1 {[%clk 0:00:26]}  e2 {[%clk 0:01:09]} 35. Kf2 {[%clk 0:00:26]}  exf1=Q+ {[%clk 0:01:06]} 36. Rxf1 {[%clk 0:00:26]}  Rxf1+ {[%clk 0:01:06]} 37. Rxf1 {[%clk 0:00:23]}  Bc6 {[%clk 0:01:06]} 38. g4 {[%clk 0:00:19]}  Rxa4 {[%clk 0:01:06]} 39. Ke3 {[%clk 0:00:19]}  Ra3+ {[%clk 0:01:06]} 40. Kd2 {[%clk 0:00:19]}  Rf3 {[%clk 0:01:06]} 0-1


[Site "https://www.chess.com"]

[Event "Titled Tuesday Blitz May 30 Late 2023"]
[White "Sailer, Mike"]
[Black "Bayo Milagro, Alvaro"]
[WhiteFideId "2012901"]
[BlackFideId "22275240"]
[WhiteElo "2109"]
[BlackElo "2270"]
[Result "0-1"]
[Round "05"]
[TimeControl "180+2"]
[Date "2023.05.31"]
[WhiteClock "0:00:03"]
[BlackClock "0:00:06"]

1. d4 {[%clk 0:03:00]}  Nf6 {[%clk 0:02:58]} 2. Bg5 {[%clk 0:02:59]}  g6 {[%clk 0:02:57]} 3. Bxf6 {[%clk 0:03:00]}  exf6 {[%clk 0:02:58]} 4. c4 {[%clk 0:03:00]}  d5 {[%clk 0:02:54]} 5. cxd5 {[%clk 0:03:00]}  Qxd5 {[%clk 0:02:55]} 6. Nc3 {[%clk 0:02:59]}  Qd8 {[%clk 0:02:56]} 7. e3 {[%clk 0:02:57]}  Bd6 {[%clk 0:02:54]} 8. Bc4 {[%clk 0:02:56]}  Nd7 {[%clk 0:02:51]} 9. Nge2 {[%clk 0:02:52]}  f5 {[%clk 0:02:50]} 10. Qb3 {[%clk 0:02:45]}  O-O {[%clk 0:02:41]} 11. O-O {[%clk 0:02:44]}  Nb6 {[%clk 0:02:41]} 12. Bd3 {[%clk 0:02:44]}  Be6 {[%clk 0:02:40]} 13. Qc2 {[%clk 0:02:40]}  Kg7 {[%clk 0:02:38]} 14. g3 {[%clk 0:02:38]}  h5 {[%clk 0:02:38]} 15. Nf4 {[%clk 0:02:33]}  Bxf4 {[%clk 0:02:36]} 16. gxf4 {[%clk 0:02:33]}  Nd5 {[%clk 0:02:30]} 17. Nxd5 {[%clk 0:02:32]}  Bxd5 {[%clk 0:02:31]} 18. Bc4 {[%clk 0:02:23]}  Be4 {[%clk 0:02:30]} 19. Bd3 {[%clk 0:02:23]}  Bc6 {[%clk 0:02:17]} 20. Rac1 {[%clk 0:02:07]}  Re8 {[%clk 0:02:12]} 21. Qc5 {[%clk 0:01:59]}  Qh4 {[%clk 0:02:04]} 22. Be2 {[%clk 0:01:38]}  Rad8 {[%clk 0:02:02]} 23. Rc3 {[%clk 0:01:26]}  Rd5 {[%clk 0:01:51]} 24. Qc4 {[%clk 0:01:14]}  g5 {[%clk 0:00:51]} 25. Qd3 {[%clk 0:00:46]}  gxf4 {[%clk 0:00:38]} 26. Bf3 {[%clk 0:00:42]}  Rd6 {[%clk 0:00:28]} 27. Bxc6 {[%clk 0:00:38]}  Rg6+ {[%clk 0:00:26]} 28. Kh1 {[%clk 0:00:38]}  bxc6 {[%clk 0:00:18]} 29. Qxf5 {[%clk 0:00:37]}  Ree6 {[%clk 0:00:09]} 30. exf4 {[%clk 0:00:27]}  Ref6 {[%clk 0:00:07]} 31. Qh3 {[%clk 0:00:27]}  Qxh3 {[%clk 0:00:04]} 32. Rxh3 {[%clk 0:00:27]}  Rxf4 {[%clk 0:00:05]} 33. Rxh5 {[%clk 0:00:18]}  Rxd4 {[%clk 0:00:05]} 34. Ra5 {[%clk 0:00:16]}  Rd2 {[%clk 0:00:04]} 35. b3 {[%clk 0:00:14]}  Rd4 {[%clk 0:00:02]} 36. Rxa7 {[%clk 0:00:13]}  Rh4 {[%clk 0:00:03]} 37. f3 {[%clk 0:00:11]}  Rd4 {[%clk 0:00:01]} 38. Rxc7 {[%clk 0:00:11]}  Rd2 {[%clk 0:00:02]} 39. Re7 {[%clk 0:00:02]}  Rh6 {[%clk 0:00:02]} 40. Rc1 {[%clk 0:00:01]}  Rhxh2+ {[%clk 0:00:02]} 41. Kg1 {[%clk 0:00:02]}  Rhg2+ {[%clk 0:00:02]} 42. Kf1 {[%clk 0:00:03]}  Rh2 {[%clk 0:00:03]} 43. Kg1 {[%clk 0:00:04]}  Rxa2 {[%clk 0:00:03]} 44. Rxc6 {[%clk 0:00:03]}  Rag2+ {[%clk 0:00:04]} 45. Kf1 {[%clk 0:00:04]}  Rb2 {[%clk 0:00:04]} 46. Kg1 {[%clk 0:00:05]}  Rhd2 {[%clk 0:00:04]} 47. Rc1 {[%clk 0:00:05]}  Rxb3 {[%clk 0:00:05]} 48. Kh1 {[%clk 0:00:05]}  Rxf3 {[%clk 0:00:05]} 49. Kg1 {[%clk 0:00:05]}  Rff2 {[%clk 0:00:05]} 50. Kh1 {[%clk 0:00:04]}  Rf4 {[%clk 0:00:05]} 51. Re5 {[%clk 0:00:04]}  Rh4+ {[%clk 0:00:04]} 52. Kg1 {[%clk 0:00:05]}  Rg4+ {[%clk 0:00:05]} 53. Kh1 {[%clk 0:00:06]}  Rg6 {[%clk 0:00:05]} 54. Re3 {[%clk 0:00:06]}  f6 {[%clk 0:00:05]} 55. Rh3 {[%clk 0:00:06]}  Rg5 {[%clk 0:00:04]} 56. Rc7+ {[%clk 0:00:06]}  Kg6 {[%clk 0:00:05]} 57. Rch7 {[%clk 0:00:05]}  Ra5 {[%clk 0:00:04]} 58. R7h6+ {[%clk 0:00:05]}  Kf7 {[%clk 0:00:04]} 59. Rh7+ {[%clk 0:00:06]}  Ke6 {[%clk 0:00:05]} 60. Re3+ {[%clk 0:00:06]}  Re5 {[%clk 0:00:04]} 61. Rxe5+ {[%clk 0:00:07]}  fxe5 {[%clk 0:00:05]} 62. Kg1 {[%clk 0:00:07]}  Kd5 {[%clk 0:00:05]} 63. Kf1 {[%clk 0:00:07]}  Kd4 {[%clk 0:00:06]} 64. Rh3 {[%clk 0:00:07]}  Rd3 {[%clk 0:00:04]} 65. Rh4+ {[%clk 0:00:06]}  Ke3 {[%clk 0:00:03]} 66. Rh3+ {[%clk 0:00:06]}  Kd4 {[%clk 0:00:04]} 67. Rh4+ {[%clk 0:00:07]}  e4 {[%clk 0:00:04]} 68. Ke2 {[%clk 0:00:06]}  Ra3 {[%clk 0:00:05]} 69. Ke1 {[%clk 0:00:05]}  Kd3 {[%clk 0:00:03]} 70. Rh8 {[%clk 0:00:03]}  Ra1+ {[%clk 0:00:03]} 71. Kf2 {[%clk 0:00:04]}  e3+ {[%clk 0:00:04]} 72. Kf3 {[%clk 0:00:03]}  Rf1+ {[%clk 0:00:04]} 73. Kg2 {[%clk 0:00:03]}  e2 {[%clk 0:00:04]} 74. Rd8+ {[%clk 0:00:04]}  Kc4 {[%clk 0:00:05]} 75. Rc8+ {[%clk 0:00:04]}  Kb5 {[%clk 0:00:05]} 76. Rb8+ {[%clk 0:00:04]}  Ka6 {[%clk 0:00:06]} 77. Re8 {[%clk 0:00:03]}  e1=Q {[%clk 0:00:06]} 0-1


[Site "https://www.chess.com"]

[Event "Titled Tuesday Blitz May 30 Late 2023"]
[White "Svane, Rasmus"]
[Black "Atanasov, Radislav"]
[WhiteFideId "4657101"]
[BlackFideId "2901471"]
[WhiteElo "2601"]
[BlackElo "2077"]
[Result "1-0"]
[Round "05"]
[TimeControl "180+2"]
[Date "2023.05.31"]
[WhiteClock "0:02:36"]
[BlackClock "0:01:11"]

1. Nf3 {[%clk 0:03:00]}  Nf6 {[%clk 0:02:59]} 2. g3 {[%clk 0:02:59]}  g6 {[%clk 0:02:59]} 3. Bg2 {[%clk 0:02:59]}  Bg7 {[%clk 0:02:59]} 4. O-O {[%clk 0:03:00]}  O-O {[%clk 0:03:00]} 5. d4 {[%clk 0:03:01]}  d6 {[%clk 0:03:00]} 6. Re1 {[%clk 0:03:01]}  d5 {[%clk 0:02:40]} 7. c4 {[%clk 0:03:00]}  c6 {[%clk 0:02:38]} 8. Qb3 {[%clk 0:03:00]}  Qb6 {[%clk 0:02:37]} 9. Nc3 {[%clk 0:03:00]}  Bf5 {[%clk 0:02:35]} 10. h3 {[%clk 0:02:56]}  h5 {[%clk 0:02:34]} 11. Na4 {[%clk 0:02:49]}  Qxb3 {[%clk 0:02:31]} 12. axb3 {[%clk 0:02:49]}  Nbd7 {[%clk 0:02:31]} 13. Bf4 {[%clk 0:02:42]}  Ne4 {[%clk 0:02:31]} 14. Nc3 {[%clk 0:02:41]}  Nxc3 {[%clk 0:02:25]} 15. bxc3 {[%clk 0:02:41]}  dxc4 {[%clk 0:02:25]} 16. bxc4 {[%clk 0:02:42]}  c5 {[%clk 0:02:25]} 17. e4 {[%clk 0:02:39]}  Be6 {[%clk 0:02:04]} 18. d5 {[%clk 0:02:39]}  Bxc3 {[%clk 0:02:00]} 19. dxe6 {[%clk 0:02:40]}  fxe6 {[%clk 0:02:00]} 20. e5 {[%clk 0:02:37]}  Bxe1 {[%clk 0:01:58]} 21. Rxe1 {[%clk 0:02:37]}  Nb6 {[%clk 0:01:49]} 22. Ng5 {[%clk 0:02:36]}  Rfc8 {[%clk 0:01:14]} 23. Bxb7 {[%clk 0:02:35]}  Rcb8 {[%clk 0:01:11]} 24. Bxa8 {[%clk 0:02:35]}  Rxa8 {[%clk 0:01:11]} 25. Nxe6 {[%clk 0:02:36]} 1-0


[Site "https://www.chess.com"]

[Event "Titled Tuesday Blitz May 30 Late 2023"]
[White "D`Arruda, Ricardo D."]
[Black "Baidetskyi, Valentin"]
[WhiteFideId "100692"]
[BlackFideId "14142317"]
[WhiteElo "2516"]
[BlackElo "2490"]
[Result "1-0"]
[Round "05"]
[TimeControl "180+2"]
[Date "2023.05.31"]
[WhiteClock "0:00:14"]
[BlackClock "0:00:08"]

1. Nf3 {[%clk 0:02:05]}  Nf6 {[%clk 0:02:59]} 2. d4 {[%clk 0:02:05]}  g6 {[%clk 0:02:59]} 3. Nc3 {[%clk 0:02:06]}  d5 {[%clk 0:02:57]} 4. Bg5 {[%clk 0:02:06]}  c6 {[%clk 0:02:52]} 5. Bxf6 {[%clk 0:02:03]}  exf6 {[%clk 0:02:53]} 6. e4 {[%clk 0:02:03]}  dxe4 {[%clk 0:02:51]} 7. Nxe4 {[%clk 0:02:04]}  Bg7 {[%clk 0:02:49]} 8. Bc4 {[%clk 0:02:03]}  O-O {[%clk 0:02:49]} 9. O-O {[%clk 0:02:03]}  Nd7 {[%clk 0:02:35]} 10. c3 {[%clk 0:01:59]}  Nb6 {[%clk 0:02:35]} 11. Bb3 {[%clk 0:01:59]}  a5 {[%clk 0:02:35]} 12. a4 {[%clk 0:01:58]}  Bf5 {[%clk 0:02:17]} 13. Nc5 {[%clk 0:01:55]}  Qc7 {[%clk 0:02:15]} 14. Re1 {[%clk 0:01:55]}  Rae8 {[%clk 0:01:57]} 15. Qd2 {[%clk 0:01:54]}  Nd7 {[%clk 0:01:46]} 16. Nxd7 {[%clk 0:01:51]}  Qxd7 {[%clk 0:01:42]} 17. Rxe8 {[%clk 0:01:47]}  Rxe8 {[%clk 0:01:42]} 18. Re1 {[%clk 0:01:47]}  Be4 {[%clk 0:01:32]} 19. Bd1 {[%clk 0:01:30]}  f5 {[%clk 0:01:11]} 20. h3 {[%clk 0:01:28]}  h6 {[%clk 0:00:33]} 21. Re3 {[%clk 0:01:24]}  Rd8 {[%clk 0:00:17]} 22. Qe1 {[%clk 0:01:20]}  Bf6 {[%clk 0:00:11]} 23. Nd2 {[%clk 0:01:18]}  Bd5 {[%clk 0:00:11]} 24. Nf3 {[%clk 0:01:08]}  Kg7 {[%clk 0:00:11]} 25. Ne5 {[%clk 0:01:08]}  Qd6 {[%clk 0:00:10]} 26. Bf3 {[%clk 0:01:03]}  b5 {[%clk 0:00:08]} 27. axb5 {[%clk 0:00:59]}  cxb5 {[%clk 0:00:08]} 28. Bxd5 {[%clk 0:00:57]}  Qxd5 {[%clk 0:00:09]} 29. Nd3 {[%clk 0:00:46]}  Rb8 {[%clk 0:00:05]} 30. Qa1 {[%clk 0:00:36]}  b4 {[%clk 0:00:05]} 31. Nc5 {[%clk 0:00:32]}  bxc3 {[%clk 0:00:04]} 32. bxc3 {[%clk 0:00:33]}  Ra8 {[%clk 0:00:04]} 33. Qa4 {[%clk 0:00:32]}  f4 {[%clk 0:00:04]} 34. Re1 {[%clk 0:00:32]}  f3 {[%clk 0:00:04]} 35. Qd7 {[%clk 0:00:25]}  Qg5 {[%clk 0:00:02]} 36. Qg4 {[%clk 0:00:23]}  Qxg4 {[%clk 0:00:03]} 37. hxg4 {[%clk 0:00:24]}  fxg2 {[%clk 0:00:04]} 38. Kxg2 {[%clk 0:00:24]}  a4 {[%clk 0:00:04]} 39. Ra1 {[%clk 0:00:23]}  a3 {[%clk 0:00:05]} 40. Ra2 {[%clk 0:00:23]}  Be7 {[%clk 0:00:06]} 41. Nd3 {[%clk 0:00:20]}  Rc8 {[%clk 0:00:06]} 42. Rc2 {[%clk 0:00:18]}  Kf6 {[%clk 0:00:04]} 43. Nc1 {[%clk 0:00:19]}  Ke6 {[%clk 0:00:04]} 44. Re2+ {[%clk 0:00:18]}  Kd7 {[%clk 0:00:05]} 45. Na2 {[%clk 0:00:19]}  Bd6 {[%clk 0:00:05]} 46. Kf3 {[%clk 0:00:18]}  Rb8 {[%clk 0:00:05]} 47. Ke4 {[%clk 0:00:18]}  Rb2 {[%clk 0:00:05]} 48. Kd3 {[%clk 0:00:18]}  h5 {[%clk 0:00:06]} 49. Rc2 {[%clk 0:00:18]}  hxg4 {[%clk 0:00:05]} 50. Nc1 {[%clk 0:00:17]}  Rxc2 {[%clk 0:00:04]} 51. Kxc2 {[%clk 0:00:17]}  f5 {[%clk 0:00:04]} 52. Kb3 {[%clk 0:00:16]}  f4 {[%clk 0:00:05]} 53. Nd3 {[%clk 0:00:16]}  g3 {[%clk 0:00:05]} 54. fxg3 {[%clk 0:00:16]}  f3 {[%clk 0:00:04]} 55. Nf2 {[%clk 0:00:13]}  Bxg3 {[%clk 0:00:04]} 56. Ne4 {[%clk 0:00:14]}  f2 {[%clk 0:00:05]} 57. Nxg3 {[%clk 0:00:13]}  Ke6 {[%clk 0:00:05]} 58. c4 {[%clk 0:00:13]}  Kf6 {[%clk 0:00:05]} 59. c5 {[%clk 0:00:13]}  Ke6 {[%clk 0:00:06]} 60. c6 {[%clk 0:00:13]}  Kd6 {[%clk 0:00:06]} 61. d5 {[%clk 0:00:14]}  g5 {[%clk 0:00:05]} 62. Kxa3 {[%clk 0:00:14]}  g4 {[%clk 0:00:06]} 63. Kb3 {[%clk 0:00:14]}  Kxd5 {[%clk 0:00:07]} 64. c7 {[%clk 0:00:14]}  Ke5 {[%clk 0:00:07]} 65. c8=Q {[%clk 0:00:14]}  Kf4 {[%clk 0:00:08]} 66. Qc7+ {[%clk 0:00:14]} 1-0


[Site "https://www.chess.com"]

[Event "Titled Tuesday Blitz May 30 Late 2023"]
[White "Jarovinsky, Alexey"]
[Black "Dragomirescu, Robin-Alexandru"]
[WhiteFideId "14115131"]
[BlackFideId "1213849"]
[WhiteElo "2446"]
[BlackElo "2356"]
[Result "1/2-1/2"]
[Round "05"]
[TimeControl "180+2"]
[Date "2023.05.31"]
[WhiteClock "0:00:17"]
[BlackClock "0:00:10"]

1. Nc3 {[%clk 0:03:00]}  Nc6 {[%clk 0:02:58]} 2. d4 {[%clk 0:02:58]}  d5 {[%clk 0:02:59]} 3. e4 {[%clk 0:02:57]}  dxe4 {[%clk 0:02:52]} 4. d5 {[%clk 0:02:58]}  Ne5 {[%clk 0:02:52]} 5. Qd4 {[%clk 0:02:58]}  Ng6 {[%clk 0:02:51]} 6. Qxe4 {[%clk 0:02:58]}  Nf6 {[%clk 0:02:48]} 7. Qa4+ {[%clk 0:02:58]}  Bd7 {[%clk 0:02:47]} 8. Bb5 {[%clk 0:02:58]}  a6 {[%clk 0:02:40]} 9. Bxd7+ {[%clk 0:02:53]}  Qxd7 {[%clk 0:02:40]} 10. Qxd7+ {[%clk 0:02:53]}  Kxd7 {[%clk 0:02:30]} 11. h4 {[%clk 0:02:42]}  c6 {[%clk 0:02:01]} 12. h5 {[%clk 0:02:40]}  Ne5 {[%clk 0:02:00]} 13. Bf4 {[%clk 0:02:37]}  Nc4 {[%clk 0:01:56]} 14. dxc6+ {[%clk 0:02:28]}  Kxc6 {[%clk 0:01:57]} 15. Nf3 {[%clk 0:02:28]}  e5 {[%clk 0:01:51]} 16. Nxe5+ {[%clk 0:02:08]}  Nxe5 {[%clk 0:01:50]} 17. Bxe5 {[%clk 0:02:09]}  Re8 {[%clk 0:01:49]} 18. f4 {[%clk 0:02:09]}  Bd6 {[%clk 0:01:45]} 19. O-O {[%clk 0:02:00]}  Bxe5 {[%clk 0:01:45]} 20. fxe5 {[%clk 0:02:00]}  Rxe5 {[%clk 0:01:45]} 21. h6 {[%clk 0:02:01]}  Re6 {[%clk 0:01:29]} 22. hxg7 {[%clk 0:01:49]}  Rg8 {[%clk 0:01:29]} 23. Rae1 {[%clk 0:01:46]}  Rxe1 {[%clk 0:01:25]} 24. Rxe1 {[%clk 0:01:47]}  Rxg7 {[%clk 0:01:25]} 25. Ne4 {[%clk 0:01:40]}  Nxe4 {[%clk 0:01:19]} 26. Rxe4 {[%clk 0:01:41]}  Rg5 {[%clk 0:01:10]} 27. Rf4 {[%clk 0:01:38]}  f5 {[%clk 0:01:09]} 28. Kf2 {[%clk 0:01:33]}  b5 {[%clk 0:01:05]} 29. c4 {[%clk 0:01:27]}  b4 {[%clk 0:00:56]} 30. b3 {[%clk 0:01:25]}  Kc5 {[%clk 0:00:53]} 31. Rh4 {[%clk 0:01:22]}  h5 {[%clk 0:00:52]} 32. Rf4 {[%clk 0:01:22]}  a5 {[%clk 0:00:48]} 33. g3 {[%clk 0:01:21]}  a4 {[%clk 0:00:32]} 34. Kg2 {[%clk 0:01:21]}  axb3 {[%clk 0:00:31]} 35. axb3 {[%clk 0:01:22]}  Kd6 {[%clk 0:00:15]} 36. Rd4+ {[%clk 0:01:17]}  Ke5 {[%clk 0:00:15]} 37. Rd5+ {[%clk 0:01:16]}  Ke4 {[%clk 0:00:15]} 38. Kh3 {[%clk 0:01:12]}  Rg7 {[%clk 0:00:13]} 39. Rb5 {[%clk 0:01:07]}  h4 {[%clk 0:00:10]} 40. Kxh4 {[%clk 0:00:59]}  Rh7+ {[%clk 0:00:10]} 41. Kg5 {[%clk 0:00:59]}  Rg7+ {[%clk 0:00:10]} 42. Kh4 {[%clk 0:00:59]}  Rh7+ {[%clk 0:00:11]} 43. Kg5 {[%clk 0:00:59]}  Rg7+ {[%clk 0:00:12]} 44. Kf6 {[%clk 0:00:57]}  Rxg3 {[%clk 0:00:11]} 45. Rxb4 {[%clk 0:00:48]}  f4 {[%clk 0:00:11]} 46. c5+ {[%clk 0:00:45]}  Kd5 {[%clk 0:00:11]} 47. Rc4 {[%clk 0:00:25]}  Rxb3 {[%clk 0:00:10]} 48. Rxf4 {[%clk 0:00:21]}  Kxc5 {[%clk 0:00:10]} 49. Ke5 {[%clk 0:00:18]}  Rc3 {[%clk 0:00:09]} 50. Rg4 {[%clk 0:00:17]}  Rc4 {[%clk 0:00:09]} 51. Rxc4+ {[%clk 0:00:17]}  Kxc4 {[%clk 0:00:10]} 1/2-1/2


[Site "https://www.chess.com"]

[Event "Titled Tuesday Blitz May 30 Late 2023"]
[White "Pulpan, Jakub"]
[Black "Liu, Casper"]
[WhiteFideId "302759"]
[BlackFideId "1454153"]
[WhiteElo "2484"]
[BlackElo "2221"]
[Result "1-0"]
[Round "05"]
[TimeControl "180+2"]
[Date "2023.05.31"]
[WhiteClock "0:00:08"]
[BlackClock "0:00:02"]

1. h3 {[%clk 0:03:00]}  a6 {[%clk 0:02:58]} 2. Nf3 {[%clk 0:02:53]}  d5 {[%clk 0:02:58]} 3. b3 {[%clk 0:02:52]}  Nc6 {[%clk 0:02:58]} 4. Bb2 {[%clk 0:02:53]}  f6 {[%clk 0:02:58]} 5. d4 {[%clk 0:02:53]}  Bf5 {[%clk 0:02:58]} 6. e3 {[%clk 0:02:53]}  e6 {[%clk 0:02:58]} 7. Bd3 {[%clk 0:02:54]}  Bd6 {[%clk 0:02:57]} 8. Nbd2 {[%clk 0:02:54]}  Nge7 {[%clk 0:02:57]} 9. e4 {[%clk 0:02:53]}  Bg6 {[%clk 0:02:54]} 10. a3 {[%clk 0:02:53]}  dxe4 {[%clk 0:02:46]} 11. Nxe4 {[%clk 0:02:50]}  Nd5 {[%clk 0:02:45]} 12. g3 {[%clk 0:02:35]}  O-O {[%clk 0:02:43]} 13. c4 {[%clk 0:02:32]}  Bxe4 {[%clk 0:02:22]} 14. Bxe4 {[%clk 0:02:26]}  f5 {[%clk 0:02:20]} 15. Bc2 {[%clk 0:02:18]}  Nf6 {[%clk 0:02:21]} 16. O-O {[%clk 0:02:17]}  Ne4 {[%clk 0:02:19]} 17. Qe2 {[%clk 0:02:04]}  Ng5 {[%clk 0:02:12]} 18. Nxg5 {[%clk 0:01:49]}  Qxg5 {[%clk 0:02:12]} 19. c5 {[%clk 0:01:11]}  Be7 {[%clk 0:02:04]} 20. Qxe6+ {[%clk 0:01:09]}  Kh8 {[%clk 0:02:04]} 21. d5 {[%clk 0:01:09]}  Bxc5 {[%clk 0:02:01]} 22. Kg2 {[%clk 0:01:03]}  Rae8 {[%clk 0:02:00]} 23. Qd7 {[%clk 0:01:02]}  Re7 {[%clk 0:02:01]} 24. dxc6 {[%clk 0:00:59]}  Rxd7 {[%clk 0:02:01]} 25. cxd7 {[%clk 0:00:59]}  Bd6 {[%clk 0:01:33]} 26. Rfe1 {[%clk 0:00:51]}  Qd8 {[%clk 0:01:33]} 27. Bxf5 {[%clk 0:00:45]}  Qg5 {[%clk 0:01:21]} 28. Bg4 {[%clk 0:00:16]}  h5 {[%clk 0:01:11]} 29. Re8 {[%clk 0:00:15]}  Be7 {[%clk 0:00:42]} 30. Rxf8+ {[%clk 0:00:07]}  Bxf8 {[%clk 0:00:41]} 31. Be6 {[%clk 0:00:07]}  Be7 {[%clk 0:00:36]} 32. Re1 {[%clk 0:00:07]}  h4 {[%clk 0:00:31]} 33. Bg4 {[%clk 0:00:07]}  hxg3 {[%clk 0:00:29]} 34. Re5 {[%clk 0:00:07]}  Qd2 {[%clk 0:00:01]} 35. Rh5+ {[%clk 0:00:07]}  Kg8 {[%clk 0:00:01]} 36. Be6+ {[%clk 0:00:07]}  Kf8 {[%clk 0:00:02]} 37. Rh8# {[%clk 0:00:08]} 1-0


[Site "https://www.chess.com"]